[Event "Fagernes Chess Open 2025"]
[Site "Fagernes"]
[Date "2025.04.15"]
[Round "3.8"]
[White "Sivaparan, Isai"]
[Black "Smedsrud, Morten S"]
[Result "1-0"]
[Annotator "NA RC"]
[ECO "C47"]
[WhiteElo "1944"]
[BlackElo "1699"]
[PlyCount "85"]
[EventDate "2025.04.12"]
[EventCountry "NOR"]
[SourceTitle "playchess.com"]
[Source "ChessBase"]
[SourceQuality "1"]
[TimeControl "40/6000+30:2400+30"]

1. e4 {[%emt 0:00:03]} e5 {[%emt 0:01:46]} 2. Nf3 {[%emt 0:00:19]} Nf6 {[%emt 0:00:22]} 3. Nc3 {[%emt 0:02:15]} Nc6 {[%emt 0:00:16]} 4. h3 {[%emt 0:01:11]} d5 {[%emt 0:07:21]} 5. exd5 {[%emt 0:01:11]} Nxd5 {[%emt 0:02:37]} 6. Bb5 {[%emt 0:05:57]} Nxc3 {[%emt 0:08:59]} 7. bxc3 {[%emt 0:02:07]} Bd6 {[%emt 0:11:07]} 8. O-O {[%emt 0:03:05]} O-O {[%emt 0:02:33]} 9. Re1 {[%emt 0:04:46]} Qf6 {[%emt 0:05:54]} 10. d4 {[%emt 0:06:03]} exd4 {[%emt 0:05:09]} 11. cxd4 {[%emt 0:02:57]} Bd7 {[%emt 0:24:37]} 12. Bg5 {[%emt 0:14:05]} Qg6 {[%emt 0:03:16]} 13. Bd3 {[%emt 0:05:01]} Bf5 {[%emt 0:02:08]} 14. Nh4 {[%emt 0:16:07]} Qxg5 {[%emt 0:02:08]} 15. Nxf5 {[%emt 0:01:21]} Rfd8 {[%emt 0:08:20]} 16. Re4 {[%emt 0:03:19]} Bf8 {[%emt 0:06:25]} 17. Rg4 {[%emt 0:04:32]} Qf6 {[%emt 0:02:25]} 18. Qd2 {[%emt 0:02:58]} Kh8 {[%emt 0:04:27]} 19. c3 {[%emt 0:02:26]} Ne7 {[%emt 0:01:26]} 20. Ng3 {[%emt 0:03:02]} c5 {[%emt 0:01:59]} 21. Ne4 {[%emt 0:01:18]} Qc6 {[%emt 0:01:17]} 22. Nxc5 {[%emt 0:01:24]} Nd5 {[%emt 0:01:16]} 23. Rh4 {[%emt 0:01:53]} Nf6 {[%emt 0:00:11]} 24. Nb3 {[%emt 0:01:38]} Rac8 {[%emt 0:00:39]} 25. c4 {[%emt 0:00:54]} Be7 {[%emt 0:01:36]} 26. Re1 {[%emt 0:00:52]} Bf8 {[%emt 0:00:46]} 27. Qg5 {[%emt 0:03:58]} Re8 {[%emt 0:00:53]} 28. Re5 {[%emt 0:02:19]} Qd6 {[%emt 0:01:37]} 29. Qf5 {[%emt 0:03:12]} g6 {[%emt 0:00:35]} 30. Qf4 {[%emt 0:01:22]} Kg8 {[%emt 0:00:56]} 31. c5 {[%emt 0:03:44]} Qd8 {[%emt 0:00:47]} 32. Rxe8 {[%emt 0:01:12]} Nxe8 {[%emt 0:00:06]} 33. Rxh7 {[%emt 0:02:05]} Qf6 {[%emt 0:00:55]} 34. Rh4 {[%emt 0:01:31]} Bg7 {[%emt 0:00:26]} 35. Qxf6 {[%emt 0:00:19]} Nxf6 {[%emt 0:00:11]} 36. Rf4 {[%emt 0:00:55]} Re8 {[%emt 0:00:34]} 37. Kf1 {[%emt 0:00:36]} Nd5 {[%emt 0:01:42]} 38. Re4 {[%emt 0:00:46]} Rd8 {[%emt 0:00:38]} 39. Bc4 {[%emt 0:01:07]} Nc3 {[%emt 0:00:47]} 40. Re7 {[%emt 0:01:32]} Nxa2 {[%emt 0:00:41]} 41. Rxf7 {[%emt 0:41:16]} Kh8 {[%emt 0:03:23]} 42. Rxb7 {[%emt 0:00:00]} Nc3 {[%emt 0:01:41]} 43. c6 {[%emt 0:00:00]} 1-0

[Event "Fagernes Chess Open 2025"]
[Site "Fagernes"]
[Date "2025.04.15"]
[Round "3.9"]
[White "Stokhaug, Jon Arne"]
[Black "Lang, Gusztav Jr"]
[Result "1/2-1/2"]
[Annotator "NA RC"]
[ECO "D46"]
[WhiteElo "1871"]
[BlackElo "1729"]
[PlyCount "61"]
[EventDate "2025.04.12"]
[EventCountry "NOR"]
[SourceTitle "playchess.com"]
[Source "ChessBase"]
[SourceQuality "1"]
[TimeControl "40/6000+30:2400+30"]

1. d4 {[%emt 0:01:20]} Nf6 {[%emt 0:00:21]} 2. Nf3 {[%emt 0:00:03]} d5 {[%emt 0:00:18]} 3. c4 {[%emt 0:00:07]} e6 {[%emt 0:00:19]} 4. Nc3 {[%emt 0:00:06]} c6 {[%emt 0:02:42]} 5. e3 {[%emt 0:01:41]} Be7 {[%emt 0:00:52]} 6. Bd3 {[%emt 0:00:17]} Nbd7 {[%emt 0:05:09]} 7. O-O {[%emt 0:00:31]} O-O {[%emt 0:09:45]} 8. b3 {[%emt 0:03:49]} Re8 {[%emt 0:09:17]} 9. Bb2 {[%emt 0:04:44]} Bd6 {[%emt 0:10:53]} 10. cxd5 {[%emt 0:08:01]} exd5 {[%emt 0:06:08]} 11. Qc2 {[%emt 0:03:34]} Qe7 {[%emt 0:08:17]} 12. Rae1 {[%emt 0:02:13]} Ne4 {[%emt 0:02:30]} 13. Bxe4 {[%emt 0:10:47]} dxe4 {[%emt 0:00:37]} 14. Nd2 {[%emt 0:00:10]} Nf6 {[%emt 0:08:15]} 15. f4 {[%emt 0:09:08]} exf3 {[%emt 0:12:18]} 16. Nxf3 {[%emt 0:05:24]} Bb4 {[%emt 0:14:25]} 17. Ne5 {[%emt 0:04:42]} Ng4 {[%emt 0:03:42]} 18. Nxg4 {[%emt 0:08:30]} Bxg4 {[%emt 0:00:05]} 19. Qf2 {[%emt 0:03:17]} Be6 {[%emt 0:02:15]} 20. Kh1 {[%emt 0:04:51]} Bxc3 {[%emt 0:00:28]} 21. Bxc3 {[%emt 0:02:03]} Bd5 {[%emt 0:00:02]} 22. Qg3 {[%emt 0:03:55]} Qe4 {[%emt 0:02:49]} 23. Rf2 {[%emt 0:05:03]} Re6 {[%emt 0:02:22]} 24. Qf4 {[%emt 0:02:20]} Qxf4 {[%emt 0:00:59]} 25. Rxf4 {[%emt 0:00:21]} Rae8 {[%emt 0:00:30]} 26. Bd2 {[%emt 0:00:09]} Rg6 {[%emt 0:01:01]} 27. e4 {[%emt 0:05:56]} Rge6 {[%emt 0:00:24]} 28. e5 {[%emt 0:00:05]} f6 {[%emt 0:00:43]} 29. Bc3 {[%emt 0:00:16]} fxe5 {[%emt 0:00:11]} 30. Rxe5 {[%emt 0:01:26]} Rxe5 {[%emt 0:00:25]} 31. dxe5 {[%emt 0:00:04]} 1/2-1/2

[Event "Fagernes Chess Open 2025"]
[Site "Fagernes"]
[Date "2025.04.15"]
[Round "3.10"]
[White "Odden, Jan Ove"]
[Black "Brattgjerd, August Minh"]
[Result "1/2-1/2"]
[Annotator "NA RC"]
[ECO "C02"]
[WhiteElo "1720"]
[BlackElo "1845"]
[PlyCount "113"]
[EventDate "2025.04.12"]
[EventCountry "NOR"]
[SourceTitle "playchess.com"]
[Source "ChessBase"]
[SourceQuality "1"]
[TimeControl "40/6000+30:2400+30"]

1. e4 {[%emt 0:00:30]} e6 {[%emt 0:01:04]} 2. d4 {[%emt 0:00:08]} d5 {[%emt 0:00:04]} 3. e5 {[%emt 0:00:07]} c5 {[%emt 0:00:20]} 4. c3 {[%emt 0:00:05]} Bd7 {[%emt 0:00:06]} 5. Nf3 {[%emt 0:00:26]} Qb6 {[%emt 0:00:07]} 6. Bd3 {[%emt 0:00:15]} Bb5 {[%emt 0:00:13]} 7. O-O {[%emt 0:00:55]} Bxd3 {[%emt 0:00:23]} 8. Qxd3 {[%emt 0:00:29]} Nc6 {[%emt 0:00:51]} 9. Re1 {[%emt 0:09:11]} Nge7 {[%emt 0:01:15]} 10. dxc5 {[%emt 0:02:18]} Qxc5 {[%emt 0:00:40]} 11. b4 {[%emt 0:05:40]} Qb6 {[%emt 0:02:41]} 12. Be3 {[%emt 0:03:57]} Qc7 {[%emt 0:01:30]} 13. Nbd2 {[%emt 0:10:22]} Ng6 {[%emt 0:04:46]} 14. Bd4 {[%emt 0:03:51]} Rc8 {[%emt 0:07:34]} 15. Rac1 {[%emt 0:07:23]} Be7 {[%emt 0:06:09]} 16. a3 {[%emt 0:10:45]} O-O {[%emt 0:03:17]} 17. g3 {[%emt 0:07:35]} Nxd4 {[%emt 0:03:59]} 18. Qxd4 {[%emt 0:03:24]} a5 {[%emt 0:07:23]} 19. h4 {[%emt 0:02:26]} h5 {[%emt 0:01:28]} 20. Qe3 {[%emt 0:06:02]} Rfd8 {[%emt 0:09:06]} 21. Ng5 {[%emt 0:04:32]} axb4 {[%emt 0:04:03]} 22. axb4 {[%emt 0:01:34]} Ra8 {[%emt 0:05:05]} 23. Ndf3 {[%emt 0:02:32]} Ra3 {[%emt 0:05:02]} 24. Qd3 {[%emt 0:05:11]} Qc4 {[%emt 0:05:27]} 25. Qxc4 {[%emt 0:07:55]} dxc4 {[%emt 0:00:24]} 26. Nd4 {[%emt 0:05:12]} Bxg5 {[%emt 0:20:28]} 27. hxg5 {[%emt 0:01:03]} Ne7 {[%emt 0:00:38]} 28. Nb5 {[%emt 0:00:54]} Ra2 {[%emt 0:04:15]} 29. Nd6 {[%emt 0:00:30]} b5 {[%emt 0:00:35]} 30. Re3 {[%emt 0:03:00]} Nf5 {[%emt 0:04:10]} 31. Nxf5 {[%emt 0:01:17]} exf5 {[%emt 0:00:11]} 32. e6 {[%emt 0:01:37]} fxe6 {[%emt 0:02:19]} 33. Rxe6 {[%emt 0:00:17]} Kf7 {[%emt 0:00:56]} 34. Re5 {[%emt 0:01:08]} Kg6 {[%emt 0:00:48]} 35. Rxb5 {[%emt 0:00:31]} Kxg5 {[%emt 0:00:28]} 36. Re5 {[%emt 0:01:19]} Rdd2 {[%emt 0:01:09]} 37. Rf1 {[%emt 0:00:37]} Rac2 {[%emt 0:00:45]} 38. Re3 {[%emt 0:00:48]} Rd3 {[%emt 0:01:06]} 39. Rfe1 {[%emt 0:02:03]} Rdxc3 {[%emt 0:01:58]} 40. b5 {[%emt 0:01:49]} Rb3 {[%emt 0:01:50]} 41. Rxb3 {[%emt 0:01:07]} cxb3 {[%emt 0:00:18]} 42. Rb1 {[%emt 0:00:14]} b2 {[%emt 0:02:34]} 43. Kg2 {[%emt 0:00:11]} h4 {[%emt 0:05:45]} 44. gxh4+ {[%emt 0:01:39]} Kg4 {[%emt 0:02:33]} 45. b6 {[%emt 0:03:44]} f4 {[%emt 0:00:51]} 46. b7 {[%emt 0:01:15]} f3+ {[%emt 0:00:31]} 47. Kh2 {[%emt 0:02:56]} Rxf2+ {[%emt 0:00:47]} 48. Kh1 {[%emt 0:01:20]} Rc2 {[%emt 0:02:23]} 49. b8=Q {[%emt 0:01:32]} Rc1+ {[%emt 0:00:15]} 50. Kh2 {[%emt 0:00:41]} Rxb1 {[%emt 0:00:31]} 51. Qg3+ {[%emt 0:01:04]} Kf5 {[%emt 0:00:44]} 52. Qxf3+ {[%emt 0:00:24]} Ke5 {[%emt 0:01:02]} 53. Qh5+ {[%emt 0:01:37]} Kd4 {[%emt 0:01:27]} 54. Qg4+ {[%emt 0:00:24]} Kc3 {[%emt 0:01:44]} 55. Qf3+ {[%emt 0:00:46]} Kc2 {[%emt 0:01:36]} 56. Qe2+ {[%emt 0:00:34]} Kc3 {[%emt 0:01:37]} 57. Qe3+ {[%emt 0:01:36]} 1/2-1/2

[Event "Fagernes Chess Open 2025"]
[Site "Fagernes"]
[Date "2025.04.15"]
[Round "3.11"]
[White "Digernes, Mikael"]
[Black "Andersen, Even Jorstad"]
[Result "1-0"]
[Annotator "NA RC"]
[ECO "A03"]
[WhiteElo "1781"]
[BlackElo "1681"]
[PlyCount "81"]
[EventDate "2025.04.12"]
[EventCountry "NOR"]
[SourceTitle "playchess.com"]
[Source "ChessBase"]
[SourceQuality "1"]
[TimeControl "40/6000+30:2400+30"]

1. f4 {[%emt 0:00:10]} d5 {[%emt 0:01:25]} 2. Nf3 {[%emt 0:00:08]} c5 {[%emt 0:01:03]} 3. e3 {[%emt 0:00:08]} g6 {[%emt 0:00:17]} 4. Bb5+ {[%emt 0:02:29]} Nd7 {[%emt 0:01:31]} 5. Be2 {[%emt 0:00:15]} Bg7 {[%emt 0:01:33]} 6. d4 {[%emt 0:02:57]} Ngf6 {[%emt 0:01:54]} 7. Ne5 {[%emt 0:04:50]} O-O {[%emt 0:01:25]} 8. O-O {[%emt 0:01:49]} Ne4 {[%emt 0:04:00]} 9. Nxd7 {[%emt 0:07:18]} Qxd7 {[%emt 0:07:22]} 10. Nd2 {[%emt 0:07:19]} cxd4 {[%emt 0:01:31]} 11. Nf3 {[%emt 0:11:06]} dxe3 {[%emt 0:01:08]} 12. c3 {[%emt 0:00:37]} Rd8 {[%emt 0:10:16]} 13. Bxe3 {[%emt 0:01:50]} Qc7 {[%emt 0:02:52]} 14. Qb3 {[%emt 0:04:32]} Bf5 {[%emt 0:06:30]} 15. Rad1 {[%emt 0:06:10]} Nc5 {[%emt 0:03:24]} 16. Qa3 {[%emt 0:08:11]} b6 {[%emt 0:01:53]} 17. Nd4 {[%emt 0:06:28]} Be4 {[%emt 0:01:03]} 18. Bg4 {[%emt 0:07:10]} a6 {[%emt 0:04:06]} 19. b4 {[%emt 0:03:10]} Nb7 {[%emt 0:02:17]} 20. Be2 {[%emt 0:11:02]} Nd6 {[%emt 0:06:28]} 21. Qb3 {[%emt 0:06:14]} Rdc8 {[%emt 0:01:11]} 22. Rc1 {[%emt 0:02:00]} Nc4 {[%emt 0:01:03]} 23. Bxc4 {[%emt 0:00:31]} Qxc4 {[%emt 0:00:19]} 24. Rfd1 {[%emt 0:02:25]} Bxd4 {[%emt 0:06:40]} 25. Bxd4 {[%emt 0:03:08]} Qe2 {[%emt 0:00:31]} 26. Bf2 {[%emt 0:00:09]} Qg4 {[%emt 0:01:00]} 27. Bg3 {[%emt 0:00:18]} h5 {[%emt 0:00:47]} 28. Qb2 {[%emt 0:01:01]} h4 {[%emt 0:00:52]} 29. Be1 {[%emt 0:00:20]} h3 {[%emt 0:06:22]} 30. Bg3 {[%emt 0:02:42]} hxg2 {[%emt 0:01:32]} 31. Qf2 {[%emt 0:00:50]} Rxc3 {[%emt 0:03:19]} 32. Rxc3 {[%emt 0:01:37]} Qxd1+ {[%emt 0:00:11]} 33. Qe1 {[%emt 0:00:10]} Qxe1+ {[%emt 0:03:42]} 34. Bxe1 {[%emt 0:00:06]} Kf8 {[%emt 0:04:06]} 35. Bf2 {[%emt 0:00:54]} b5 {[%emt 0:03:48]} 36. Bd4 {[%emt 0:01:29]} Ke8 {[%emt 0:00:47]} 37. Rc7 {[%emt 0:00:43]} a5 {[%emt 0:02:09]} 38. a4 {[%emt 0:01:59]} axb4 {[%emt 0:03:04]} 39. axb5 {[%emt 0:00:12]} Kd8 {[%emt 0:00:50]} 40. Bb6 {[%emt 0:05:23]} Ra1+ {[%emt 0:00:13]} 41. Rc1+ {[%emt 0:40:08]} 1-0

[Event "Fagernes Chess Open 2025"]
[Site "Fagernes"]
[Date "2025.04.15"]
[Round "3.12"]
[White "Neukamm, Christian"]
[Black "Sigvaldsen, Sebastian"]
[Result "1-0"]
[Annotator "NA RC"]
[ECO "C11"]
[WhiteElo "1776"]
[BlackElo "1613"]
[PlyCount "105"]
[EventDate "2025.04.12"]
[EventCountry "NOR"]
[SourceTitle "playchess.com"]
[Source "ChessBase"]
[SourceQuality "1"]
[TimeControl "40/6000+30:2400+30"]

1. e4 {[%emt 0:00:16]} e6 {[%emt 0:00:42]} 2. d4 {[%emt 0:00:18]} d5 {[%emt 0:00:20]} 3. Nc3 {[%emt 0:00:44]} Nf6 {[%emt 0:00:45]} 4. e5 {[%emt 0:00:30]} Nfd7 {[%emt 0:00:16]} 5. f4 {[%emt 0:00:31]} c5 {[%emt 0:01:40]} 6. Nf3 {[%emt 0:00:14]} Nc6 {[%emt 0:02:08]} 7. Be3 {[%emt 0:00:18]} a6 {[%emt 0:02:35]} 8. Be2 {[%emt 0:07:40]} cxd4 {[%emt 0:04:48]} 9. Nxd4 {[%emt 0:00:23]} Nxd4 {[%emt 0:00:22]} 10. Bxd4 {[%emt 0:00:25]} Bc5 {[%emt 0:00:24]} 11. Bxc5 {[%emt 0:05:50]} Nxc5 {[%emt 0:00:26]} 12. Qd4 {[%emt 0:00:17]} Qb6 {[%emt 0:13:19]} 13. O-O-O {[%emt 0:00:22]} Nd7 {[%emt 0:03:58]} 14. Qd3 {[%emt 0:09:49]} Nc5 {[%emt 0:23:21]} 15. Qg3 {[%emt 0:01:43]} g6 {[%emt 0:01:32]} 16. f5 {[%emt 0:13:20]} Bd7 {[%emt 0:03:52]} 17. fxe6 {[%emt 0:17:51]} fxe6 {[%emt 0:01:20]} 18. Rhf1 {[%emt 0:05:44]} O-O-O {[%emt 0:03:55]} 19. Rf7 {[%emt 0:17:35]} Be8 {[%emt 0:04:00]} 20. Rf6 {[%emt 0:01:16]} Nd7 {[%emt 0:07:32]} 21. Nxd5 {[%emt 0:02:47]} exd5 {[%emt 0:07:04]} 22. Rxb6 {[%emt 0:01:03]} Nxb6 {[%emt 0:00:00]} 23. Bg4+ {[%emt 0:01:20]} Kb8 {[%emt 0:01:17]} 24. e6+ {[%emt 0:01:10]} Ka7 {[%emt 0:00:58]} 25. e7 {[%emt 0:03:07]} Rb8 {[%emt 0:01:30]} 26. Qe5 {[%emt 0:03:37]} Bc6 {[%emt 0:00:21]} 27. Qd6 {[%emt 0:06:30]} Rbe8 {[%emt 0:03:35]} 28. Rf1 {[%emt 0:00:54]} Nc8 {[%emt 0:01:29]} 29. Bxc8 {[%emt 0:00:24]} Rxc8 {[%emt 0:00:25]} 30. Rf8 {[%emt 0:00:23]} Re8 {[%emt 0:00:47]} 31. Qf6 {[%emt 0:01:28]} Rg8 {[%emt 0:01:01]} 32. Rxg8 {[%emt 0:00:20]} Rxg8 {[%emt 0:00:36]} 33. Qf8 {[%emt 0:00:12]} Rxf8 {[%emt 0:00:29]} 34. exf8=Q {[%emt 0:03:37]} d4 {[%emt 0:00:21]} 35. g3 {[%emt 0:00:15]} Kb6 {[%emt 0:00:07]} 36. Qb4+ {[%emt 0:00:26]} Kc7 {[%emt 0:00:24]} 37. Qxd4 {[%emt 0:00:12]} h5 {[%emt 0:00:35]} 38. Qg7+ {[%emt 0:00:08]} Kb8 {[%emt 0:00:54]} 39. Qxg6 {[%emt 0:00:08]} Bf3 {[%emt 0:00:09]} 40. Qe8+ {[%emt 0:00:44]} Kc7 {[%emt 0:00:30]} 41. Qf7+ {[%emt 0:40:30]} Kb6 {[%emt 0:40:30]} 42. Qxf3 {[%emt 0:00:30]} a5 {[%emt 0:00:00]} 43. Qxh5 {[%emt 0:00:00]} a4 {[%emt 0:00:00]} 44. c4 {[%emt 0:00:39]} a3 {[%emt 0:00:00]} 45. b4 {[%emt 0:00:16]} Kc7 {[%emt 0:00:06]} 46. Qg6 {[%emt 0:00:29]} b6 {[%emt 0:00:14]} 47. b5 {[%emt 0:00:10]} Kd7 {[%emt 0:00:30]} 48. Qxb6 {[%emt 0:00:30]} Kc8 {[%emt 0:00:00]} 49. Qa7 {[%emt 0:00:00]} Kd8 {[%emt 0:00:04]} 50. b6 {[%emt 0:00:20]} Ke8 {[%emt 0:00:30]} 51. Qc7 {[%emt 0:00:30]} Kf8 {[%emt 0:00:30]} 52. b7 {[%emt 0:00:30]} Kg8 {[%emt 0:00:30]} 53. b8=Q# {[%emt 0:00:30]} 1-0

[Event "Fagernes Chess Open 2025"]
[Site "Fagernes"]
[Date "2025.04.15"]
[Round "3.13"]
[White "Dybvik, Bjorn Noralf"]
[Black "Rynning, Rune Kleiven"]
[Result "0-1"]
[Annotator "NA RC"]
[ECO "B22"]
[WhiteElo "1686"]
[BlackElo "1776"]
[PlyCount "142"]
[EventDate "2025.04.12"]
[EventCountry "NOR"]
[SourceTitle "playchess.com"]
[Source "ChessBase"]
[SourceQuality "1"]
[TimeControl "40/6000+30:2400+30"]

1. e4 {[%emt 0:00:09]} c5 {[%emt 0:00:06]} 2. c3 {[%emt 0:00:18]} d5 {[%emt 0:00:06]} 3. exd5 {[%emt 0:00:15]} Qxd5 {[%emt 0:00:08]} 4. d4 {[%emt 0:00:31]} Nc6 {[%emt 0:00:06]} 5. Nf3 {[%emt 0:01:25]} Bf5 {[%emt 0:00:11]} 6. Be2 {[%emt 0:01:19]} cxd4 {[%emt 0:00:22]} 7. cxd4 {[%emt 0:01:17]} Bxb1 {[%emt 0:00:10]} 8. Rxb1 {[%emt 0:01:08]} e6 {[%emt 0:00:08]} 9. a3 {[%emt 0:02:51]} Bd6 {[%emt 0:01:11]} 10. O-O {[%emt 0:01:55]} Nge7 {[%emt 0:03:22]} 11. b3 {[%emt 0:03:55]} O-O {[%emt 0:01:19]} 12. Bc4 {[%emt 0:03:19]} Qh5 {[%emt 0:01:57]} 13. Be2 {[%emt 0:03:15]} Nd5 {[%emt 0:08:09]} 14. Qd3 {[%emt 0:05:09]} Nf4 {[%emt 0:06:35]} 15. Bxf4 {[%emt 0:02:30]} Bxf4 {[%emt 0:00:10]} 16. g3 {[%emt 0:02:04]} Bh6 {[%emt 0:04:50]} 17. Ne5 {[%emt 0:05:31]} Nxe5 {[%emt 0:01:25]} 18. dxe5 {[%emt 0:01:35]} Qxe5 {[%emt 0:00:12]} 19. Rfe1 {[%emt 0:04:29]} Rfd8 {[%emt 0:03:44]} 20. Qf3 {[%emt 0:02:10]} b5 {[%emt 0:04:26]} 21. Rbd1 {[%emt 0:04:20]} g6 {[%emt 0:05:45]} 22. Bf1 {[%emt 0:08:27]} Qc5 {[%emt 0:02:21]} 23. b4 {[%emt 0:04:16]} Qb6 {[%emt 0:00:18]} 24. Bg2 {[%emt 0:03:26]} Rac8 {[%emt 0:07:03]} 25. Kh1 {[%emt 0:03:51]} a5 {[%emt 0:04:08]} 26. Kg1 {[%emt 0:07:06]} axb4 {[%emt 0:00:51]} 27. axb4 {[%emt 0:00:20]} Rd4 {[%emt 0:02:31]} 28. Rxd4 {[%emt 0:05:02]} Qxd4 {[%emt 0:00:11]} 29. Qe4 {[%emt 0:03:54]} Qb2 {[%emt 0:06:15]} 30. Rb1 {[%emt 0:03:11]} Qc3 {[%emt 0:02:17]} 31. Bf1 {[%emt 0:01:43]} Rb8 {[%emt 0:04:34]} 32. Rd1 {[%emt 0:03:28]} Bf8 {[%emt 0:05:06]} 33. Qf4 {[%emt 0:04:02]} e5 {[%emt 0:04:20]} 34. Qf6 {[%emt 0:01:34]} Qc7 {[%emt 0:17:39]} 35. Rb1 {[%emt 0:02:32]} Rb6 {[%emt 0:02:35]} 36. Qg5 {[%emt 0:01:04]} Be7 {[%emt 0:03:36]} 37. Qe3 {[%emt 0:02:02]} Rb8 {[%emt 0:04:23]} 38. Rc1 {[%emt 0:00:51]} Qd6 {[%emt 0:01:03]} 39. Rb1 {[%emt 0:01:19]} Bd8 {[%emt 0:03:02]} 40. Qb3 {[%emt 0:03:07]} Bb6 {[%emt 0:03:01]} 41. Rd1 {[%emt 0:42:02]} Bd4 {[%emt 0:40:36]} 42. Rc1 {[%emt 0:02:42]} Bxf2+ {[%emt 0:00:00]} 43. Kg2 {[%emt 0:00:00]} Ba7 {[%emt 0:00:00]} 44. Rd1 {[%emt 0:00:00]} Bd4 {[%emt 0:00:00]} 45. Rc1 {[%emt 0:00:00]} e4 {[%emt 0:00:00]} 46. Rd1 {[%emt 0:00:00]} e3 {[%emt 0:00:00]} 47. Qxe3 {[%emt 0:00:00]} Qc6+ {[%emt 0:00:00]} 48. Qf3 {[%emt 0:00:00]} Qc2+ {[%emt 0:00:00]} 49. Kh1 {[%emt 0:00:00]} Qb2 {[%emt 0:00:00]} 50. Qd5 {[%emt 0:00:00]} Bf6 {[%emt 0:00:00]} 51. Qf3 {[%emt 0:00:00]} Rc8 {[%emt 0:00:00]} 52. Bg2 {[%emt 0:00:00]} Rc2 {[%emt 0:00:00]} 53. Rf1 {[%emt 0:00:00]} Kg7 {[%emt 0:00:00]} 54. g4 {[%emt 0:00:00]} h6 {[%emt 0:00:00]} 55. h3 {[%emt 0:00:00]} Rc4 {[%emt 0:00:21]} 56. Rf2 {[%emt 0:00:00]} Rc1+ {[%emt 0:02:46]} 57. Bf1 {[%emt 0:00:00]} Qd4 {[%emt 0:00:53]} 58. Kg2 {[%emt 0:00:34]} Rc3 {[%emt 0:00:41]} 59. Qb7 {[%emt 0:01:47]} Qe5 {[%emt 0:02:16]} 60. Rf3 {[%emt 0:01:48]} Rc2+ {[%emt 0:00:47]} 61. Rf2 {[%emt 0:01:03]} Rxf2+ {[%emt 0:00:31]} 62. Kxf2 {[%emt 0:00:31]} Qh2+ {[%emt 0:00:43]} 63. Bg2 {[%emt 0:01:27]} Qf4+ {[%emt 0:00:20]} 64. Bf3 {[%emt 0:00:55]} Bh4+ {[%emt 0:00:52]} 65. Ke2 {[%emt 0:00:29]} Qc4+ {[%emt 0:00:24]} 66. Kd1 {[%emt 0:01:37]} Qd3+ {[%emt 0:00:41]} 67. Kc1 {[%emt 0:00:37]} Bg5+ {[%emt 0:00:25]} 68. Kb2 {[%emt 0:00:31]} Qd4+ {[%emt 0:01:26]} 69. Kc2 {[%emt 0:01:37]} Qc4+ {[%emt 0:00:34]} 70. Kd1 {[%emt 0:00:48]} Qd3+ {[%emt 0:00:12]} 71. Ke1 {[%emt 0:00:37]} Bh4# {[%emt 0:00:07]} 0-1

[Event "Fagernes Chess Open 2025"]
[Site "Fagernes"]
[Date "2025.04.15"]
[Round "3.14"]
[White "Vollheim, Daniel O"]
[Black "Bollestad, Leiv Ove"]
[Result "1-0"]
[Annotator "NA RC"]
[ECO "D13"]
[WhiteElo "1764"]
[BlackElo "1585"]
[PlyCount "57"]
[EventDate "2025.04.12"]
[EventCountry "NOR"]
[SourceTitle "playchess.com"]
[Source "ChessBase"]
[SourceQuality "1"]
[TimeControl "40/6000+30:2400+30"]

1. c4 {[%emt 0:00:02]} c6 {[%emt 0:00:36]} 2. Nf3 {[%emt 0:00:36]} d5 {[%emt 0:00:18]} 3. cxd5 {[%emt 0:01:02]} cxd5 {[%emt 0:00:36]} 4. d4 {[%emt 0:00:08]} e6 {[%emt 0:02:05]} 5. Nc3 {[%emt 0:00:20]} Nf6 {[%emt 0:00:26]} 6. e3 {[%emt 0:00:44]} Bd6 {[%emt 0:02:30]} 7. Bd3 {[%emt 0:00:09]} Nc6 {[%emt 0:00:27]} 8. O-O {[%emt 0:01:15]} O-O {[%emt 0:00:42]} 9. Bd2 {[%emt 0:01:12]} a6 {[%emt 0:07:43]} 10. a3 {[%emt 0:00:48]} Qc7 {[%emt 0:02:03]} 11. Rc1 {[%emt 0:04:57]} Bd7 {[%emt 0:09:05]} 12. Qe2 {[%emt 0:05:02]} Qd8 {[%emt 0:15:57]} 13. Rfd1 {[%emt 0:05:37]} Re8 {[%emt 0:09:21]} 14. e4 {[%emt 0:12:17]} e5 {[%emt 0:03:52]} 15. dxe5 {[%emt 0:02:49]} Nxe5 {[%emt 0:02:06]} 16. Nxe5 {[%emt 0:02:40]} Bxe5 {[%emt 0:01:46]} 17. h3 {[%emt 0:20:24]} Bc6 {[%emt 0:08:38]} 18. Bg5 {[%emt 0:01:58]} Qb6 {[%emt 0:11:01]} 19. Bxf6 {[%emt 0:05:14]} Bxf6 {[%emt 0:03:58]} 20. Qc2 {[%emt 0:00:55]} Bxc3 {[%emt 0:02:46]} 21. exd5 {[%emt 0:01:14]} Bd4 {[%emt 0:03:25]} 22. dxc6 {[%emt 0:00:28]} Rac8 {[%emt 0:01:19]} 23. Bxh7+ {[%emt 0:01:31]} Kh8 {[%emt 0:00:43]} 24. Be4 {[%emt 0:01:49]} Bxf2+ {[%emt 0:00:21]} 25. Qxf2 {[%emt 0:00:17]} Qxf2+ {[%emt 0:00:24]} 26. Kxf2 {[%emt 0:00:06]} Rxe4 {[%emt 0:00:11]} 27. cxb7 {[%emt 0:00:05]} Rce8 {[%emt 0:01:23]} 28. Rc8 {[%emt 0:00:07]} Re2+ {[%emt 0:00:21]} 29. Kf1 {[%emt 0:00:23]} 1-0

[Event "Fagernes Chess Open 2025"]
[Site "Fagernes"]
[Date "2025.04.15"]
[Round "3.15"]
[White "Jorgensen, Catherine"]
[Black "Nebell, Anne Grete"]
[Result "1-0"]
[Annotator "NA RC"]
[ECO "E01"]
[WhiteElo "1609"]
[BlackElo "1561"]
[PlyCount "66"]
[EventDate "2025.04.12"]
[EventCountry "NOR"]
[SourceTitle "playchess.com"]
[Source "ChessBase"]
[SourceQuality "1"]
[TimeControl "40/6000+30:2400+30"]

1. d4 {[%emt 0:00:10]} d5 {[%emt 0:00:03]} 2. Nf3 {[%emt 0:00:04]} Nf6 {[%emt 0:00:06]} 3. g3 {[%emt 0:00:06]} c5 {[%emt 0:01:36]} 4. Bg2 {[%emt 0:00:30]} e6 {[%emt 0:00:49]} 5. O-O {[%emt 0:00:21]} Nc6 {[%emt 0:00:40]} 6. c4 {[%emt 0:01:46]} Be7 {[%emt 0:01:06]} 7. e3 {[%emt 0:03:12]} O-O {[%emt 0:00:33]} 8. b3 {[%emt 0:02:24]} Qc7 {[%emt 0:03:05]} 9. Qc2 {[%emt 0:04:42]} Rb8 {[%emt 0:03:17]} 10. Nc3 {[%emt 0:04:14]} a6 {[%emt 0:07:12]} 11. a4 {[%emt 0:10:27]} Nb4 {[%emt 0:01:49]} 12. Qe2 {[%emt 0:02:15]} Bd7 {[%emt 0:07:20]} 13. Bb2 {[%emt 0:11:16]} Rfe8 {[%emt 0:05:14]} 14. Rac1 {[%emt 0:04:31]} Bc6 {[%emt 0:06:46]} 15. cxd5 {[%emt 0:06:05]} Nfxd5 {[%emt 0:07:16]} 16. dxc5 {[%emt 0:05:18]} Nf6 {[%emt 0:02:22]} 17. Qc4 {[%emt 0:10:18]} a5 {[%emt 0:01:01]} 18. Nb5 {[%emt 0:01:33]} Bxb5 {[%emt 0:03:20]} 19. axb5 {[%emt 0:01:57]} Rbc8 {[%emt 0:02:29]} 20. Bd4 {[%emt 0:06:39]} Nfd5 {[%emt 0:04:24]} 21. Nd2 {[%emt 0:04:08]} Na2 {[%emt 0:02:21]} 22. Ra1 {[%emt 0:03:36]} Ndc3 {[%emt 0:08:45]} 23. Bxc3 {[%emt 0:05:58]} Nxc3 {[%emt 0:00:08]} 24. Qxc3 {[%emt 0:01:39]} Bf6 {[%emt 0:00:14]} 25. Qxa5 {[%emt 0:03:39]} Bxa1 {[%emt 0:00:12]} 26. Qxa1 {[%emt 0:08:05]} Qxc5 {[%emt 0:02:35]} 27. Bxb7 {[%emt 0:01:06]} Rc7 {[%emt 0:00:29]} 28. Bc6 {[%emt 0:00:14]} Rd8 {[%emt 0:00:38]} 29. Ne4 {[%emt 0:01:25]} Qb4 {[%emt 0:03:34]} 30. Rd1 {[%emt 0:01:49]} Rf8 {[%emt 0:01:53]} 31. Qa4 {[%emt 0:01:28]} Qe7 {[%emt 0:02:37]} 32. b6 {[%emt 0:00:47]} Rcc8 {[%emt 0:00:11]} 33. Rd7 {[%emt 0:02:22]} Qe8 {[%emt 0:03:51]} 1-0